bitfinex/quotes_BTCUSD_20250226
["timestamp","ask_amount","ask_price","bid_price","bid_amount"]
[1740587412029,0.02223595,87100.0,87068.0,1.80012346]
[1740587412231,0.02223595,87100.0,87070.0,0.3]
[1740587412526,0.229631,87096.0,87072.0,0.3]
[1740587412752,0.229628,87098.0,87072.0,0.3]
[1740587412953,0.172237,87089.0,87088.0,0.3]
[1740587413312,0.229635,87095.0,87068.0,0.00012346]
[1740587413514,0.02223595,87100.0,87068.0,0.00012346]
[1740587413515,0.172277,87069.0,87068.0,0.00012346]
[1740587413917,0.17936427,87094.0,87068.0,0.00012346]
[1740587414563,0.229639,87093.0,87068.0,0.00012346]
[1740587414770,0.557926,87099.0,87068.0,0.00012346]
[1740587414919,0.172235,87091.0,87068.0,0.00012346]
[1740587415124,0.3283,87099.0,87068.0,0.00012346]
[1740587415319,0.172224,87096.0,87070.0,0.01454085]
[1740587415521,0.02265945,87100.0,87069.0,0.3]
[1740587415727,0.229665,87083.0,87069.0,0.3]
[1740587415970,0.02265945,87100.0,87069.0,0.3]
[1740587416183,0.172277,87069.0,87068.0,0.00012346]
[1740587416706,0.09194187,87078.0,87040.0,0.000847]
[1740587416921,0.14164187,87052.0,87040.0,0.000847]
[1740587417140,0.172378,87018.0,87017.0,0.0008474]
[1740587417561,0.172376,87019.0,87017.0,0.0008474]
[1740587417774,0.00851814,87038.0,87017.0,0.0008474]
[1740587417991,0.02220668,87024.0,87017.0,0.0008474]
[1740587418193,0.09194187,87043.0,87017.0,0.0008474]
[1740587418401,0.229751,87051.0,87017.0,0.0008474]
[1740587418616,0.32219115,87051.0,87017.0,0.00125926]
[1740587418824,0.00855185,87041.0,87017.0,0.00125926]
[1740587419029,0.02219115,87051.0,87017.0,0.00125926]
[1740587419238,0.00844813,87045.0,87017.0,0.00125926]
[1740587419651,0.172362,87026.0,87025.0,0.3]
[1740587419858,0.01454085,87058.0,87025.0,0.3]
[1740587419859,0.229759,87048.0,87025.0,0.3]
[1740587420066,0.1473427,87052.0,87025.0,0.3]
[1740587420067,0.0223427,87052.0,87025.0,0.3]
[1740587420398,0.172362,87026.0,87025.0,0.3]
[1740587420607,0.172372,87021.0,87017.0,0.00125926]
[1740587420804,0.172378,87018.0,87017.0,0.00125926]
[1740587421026,0.09194187,87051.0,87017.0,1.50125926]
[1740587421223,0.172368,87024.0,87017.0,1.50125926]
[1740587421430,0.172368,87023.0,87017.0,0.00125926]
[1740587421653,0.32171687,87042.0,87017.0,0.00125926]
[1740587421855,0.09194187,87042.0,87017.0,0.00125926]
[1740587422249,0.22983,87021.0,87017.0,0.00125926]
[1740587422453,0.12073005,87040.0,87017.0,0.00125926]
[1740587422699,0.172378,87018.0,87017.0,0.00125926]
[1740587422829,0.17144951,87018.0,87017.0,0.00125926]
[1740587423687,0.172363,87026.0,87017.0,0.00125926]
[1740587424001,0.11073005,87040.0,87017.0,0.00125926]
[1740587424211,0.172378,87018.0,87017.0,0.00125926]
[1740587426388,0.229792,87035.0,87017.0,0.00125926]
[1740587426603,0.11073005,87050.0,87017.0,0.00125926]
[1740587426828,0.09864984,87088.0,87017.0,0.00125926]
[1740587426829,0.11073005,87058.0,87019.0,0.3]
[1740587427046,0.0482,87078.0,87027.0,0.09194187]
[1740587427277,0.09864984,87088.0,87027.0,0.09194187]
[1740587427278,0.00885983,87071.0,87038.0,0.082]
[1740587427493,0.021843,87066.0,87043.0,0.01454085]
[1740587427693,0.09864984,87088.0,87048.0,0.31454085]
[1740587427896,0.229673,87080.0,87050.0,0.31454085]
[1740587428101,0.09864984,87088.0,87052.0,0.31454085]
[1740587428102,0.229659,87086.0,87052.0,0.31454085]
[1740587428308,0.02273731,87078.0,87052.0,0.3]
[1740587428509,0.02273731,87078.0,87063.0,1.8]
[1740587428732,0.19499631,87078.0,87063.0,1.8]
[1740587428939,0.32830484,87088.0,87063.0,1.8]
[1740587429114,0.02232233,87078.0,87063.0,1.8]
[1740587429560,0.229692,87073.0,87063.0,1.8]
[1740587429762,0.172275,87070.0,87063.0,1.8]
[1740587429997,0.229692,87073.0,87063.0,1.8]
[1740587430203,0.1727105,87064.0,87063.0,1.5]
[1740587430410,0.0004235,87064.0,87043.0,0.3273]
[1740587430628,0.0004235,87064.0,87043.0,0.00012356]
[1740587430835,0.229721,87062.0,87044.0,1.5]
[1740587431036,0.22973,87059.0,87044.0,1.5]
[1740587431271,0.0004235,87064.0,87045.0,0.3]
[1740587432105,0.229718,87063.0,87044.0,1.5]
[1740587432310,0.172326,87044.0,87043.0,0.00012356]
[1740587434192,0.18686685,87044.0,87043.0,0.00012356]
[1740587435218,0.172326,87044.0,87043.0,0.00012356]
[1740587435633,0.18686685,87044.0,87043.0,0.00012356]
[1740587435841,0.2975969,87044.0,87043.0,0.00012356]
[1740587436045,0.28305605,87044.0,87043.0,0.00012356]
[1740587436453,0.172326,87044.0,87043.0,0.00012356]
[1740587437066,0.172332,87041.0,87040.0,5.6e-07]
[1740587437275,0.0455,87040.0,86991.0,0.3273]
[1740587437484,0.172417,86998.0,86979.0,0.3273]
[1740587437689,0.00861189,87022.0,86979.0,0.3273]
[1740587438101,0.229829,87021.0,86979.0,0.3273]
[1740587438302,0.00861189,87022.0,86979.0,0.3273]
[1740587438511,0.172415,86999.0,86998.0,1.8]
[1740587438745,0.00861189,87022.0,86998.0,1.8]
[1740587438949,0.229832,87020.0,86998.0,1.5]
[1740587439156,0.172415,86999.0,86998.0,1.5]
[1740587439363,0.11073005,87021.0,86998.0,1.5]
[1740587439950,0.01454085,87020.0,86998.0,1.5]
[1740587440192,0.11073005,87021.0,86999.0,0.3]
[1740587440394,0.11073005,87039.0,86999.0,0.3]
[1740587440806,0.229787,87037.0,86999.0,0.3]
[1740587441008,0.172389,87013.0,86999.0,0.3]
[1740587441158,0.229847,87015.0,86998.0,0.6273]
[1740587441360,0.229824,87023.0,87011.0,1.5]
[1740587441714,0.17239,87012.0,87011.0,1.5]
[1740587442335,0.172417,86998.0,86997.0,2.50098556]
[1740587442585,0.02798055,87012.0,86997.0,2.50098556]
[1740587442752,0.172416,86999.0,86997.0,2.50098556]
[1740587443062,0.172417,86998.0,86997.0,2.50098556]
[1740587443265,0.19569138,86998.0,86997.0,1.89384056]
[1740587443474,0.172463,86975.0,86974.0,5e-05]
[1740587443895,0.172463,86975.0,86974.0,0.00017306]
[1740587444327,0.229925,86985.0,86974.0,0.00017306]
[1740587444726,0.172458,86978.0,86974.0,0.00017306]
[1740587445145,0.172455,86980.0,86974.0,0.00017306]
[1740587445321,0.01454085,86999.0,86974.0,0.00017306]
[1740587445926,0.01454085,86996.0,86974.0,0.00017306]
[1740587446145,0.172463,86975.0,86974.0,0.00017306]
[1740587446310,0.229948,86977.0,86974.0,0.00017306]
[1740587446509,0.172463,86975.0,86974.0,0.00017306]
[1740587447667,0.06064085,87001.0,86974.0,0.00017306]
[1740587447869,0.172463,86975.0,86974.0,0.00017306]
[1740587448094,0.01454085,86995.0,86974.0,0.00017306]
[1740587448311,0.11073005,86996.0,86974.0,0.00017306]
[1740587448518,0.11073005,86996.0,86994.0,1.5]
[1740587448751,0.11073005,87017.0,86995.0,0.3]
[1740587448959,0.11073005,87032.0,86995.0,0.3]
[1740587449162,0.00839093,86995.0,86979.0,0.0455]
[1740587449386,0.00839093,86995.0,86953.0,1.1343125]
[1740587449387,0.172453,86981.0,86974.0,0.00102046]
[1740587449596,0.00839093,86995.0,86974.0,0.00102046]
[1740587449805,0.11073005,87021.0,86980.0,1.5]
[1740587450056,0.11073005,87021.0,86974.0,0.30102046]
[1740587450259,0.11073005,87021.0,86977.0,0.3]
[1740587450260,0.172415,87000.0,86977.0,0.3]
[1740587450561,0.172413,87000.0,86999.0,1.5]
[1740587450773,0.11073005,87000.0,86974.0,0.00102046]
[1740587450977,0.11073005,87000.0,86985.0,0.172443]
[1740587451190,0.172415,86999.0,86975.0,0.301]
[1740587451392,0.11073005,87000.0,86975.0,0.001]
[1740587451393,0.172443,86986.0,86975.0,0.001]
[1740587451601,0.172461,86977.0,86975.0,0.001]
[1740587451804,0.229887,86999.0,86975.0,0.001]
[1740587452010,0.11073005,86998.0,86975.0,0.001]
[1740587452186,0.229943,86979.0,86975.0,0.001]
[1740587452597,0.172461,86976.0,86975.0,0.001]
[1740587453666,0.0471,87006.0,86975.0,0.001]
[1740587454043,0.17245,86982.0,86975.0,0.001]
[1740587454243,0.01454085,86997.0,86975.0,0.001]
[1740587455023,0.172443,86986.0,86975.0,0.001]
[1740587455254,0.09194187,87009.0,86976.0,0.172459]
[1740587455451,0.229892,86997.0,86975.0,0.001]
[1740587455668,0.172461,86976.0,86975.0,0.001]
[1740587456962,0.172463,86975.0,86974.0,1e-08]
[1740587457906,0.18700385,86975.0,86974.0,1e-08]
[1740587459319,0.172497,86958.0,86953.0,0.0008872]
[1740587460229,0.229981,86964.0,86953.0,0.0008872]
[1740587460509,0.172497,86958.0,86953.0,0.0008872]
[1740587460726,0.172505,86954.0,86953.0,0.0008872]
[1740587460936,0.172528,86942.0,86937.0,0.0005436]
[1740587461367,0.172528,86942.0,86941.0,0.00096921]
[1740587461601,0.309804,86955.0,86941.0,0.00096921]
[1740587461602,0.08874842,86958.0,86941.0,0.00096921]
[1740587462081,0.172506,86954.0,86941.0,0.00096921]
[1740587462314,0.08874842,86958.0,86941.0,0.00096921]
[1740587462885,0.08874842,86971.0,86941.0,0.00096921]
[1740587463086,0.21734842,86993.0,86952.0,0.3]
[1740587463291,0.21734842,86993.0,86957.0,0.229998]
[1740587463292,0.08874842,86993.0,86957.0,0.229998]
[1740587463497,0.172465,86974.0,86973.0,1.5]
[1740587463723,0.172528,86942.0,86941.0,0.0008456]
[1740587463923,0.01454085,86971.0,86941.0,0.0008456]
[1740587464126,0.08874842,86970.0,86941.0,0.0008456]
[1740587464328,0.172528,86942.0,86941.0,0.0008456]
[1740587464827,0.172528,86942.0,86941.0,0.00096921]
[1740587465901,0.3,86963.0,86941.0,0.00096921]
[1740587466080,0.172528,86942.0,86941.0,0.00096921]
[1740587466916,0.172513,86950.0,86941.0,0.00096921]
[1740587467148,0.172528,86942.0,86941.0,0.00096921]
[1740587467791,0.24453185,86960.0,86941.0,0.00096921]
[1740587467792,0.01454085,86960.0,86941.0,0.00096921]
[1740587467993,0.08874842,86959.0,86941.0,0.00096921]
[1740587468198,0.172528,86942.0,86941.0,0.00096921]
[1740587468418,0.08874842,86959.0,86941.0,0.00096921]
[1740587468619,0.172528,86942.0,86941.0,0.00096921]
[1740587469069,0.18706885,86942.0,86941.0,0.00096921]
[1740587469910,0.18706885,86942.0,86936.0,0.0008456]
[1740587469911,0.18707685,86938.0,86936.0,0.0008456]
[1740587470346,0.172538,86937.0,86936.0,0.0008456]
[1740587470548,0.18707885,86937.0,86936.0,0.0008456]
[1740587471101,0.18736661,86937.0,86936.0,0.0008456]
[1740587471508,0.19998725,86937.0,86936.0,0.0008456]
[1740587471713,0.08903618,86937.0,86906.0,0.3]
[1740587471912,0.08874842,86947.0,86921.0,0.00012363]
[1740587472113,0.01454085,86946.0,86921.0,0.00012363]
[1740587472292,0.172568,86922.0,86921.0,0.00012363]
[1740587473179,0.01208,86950.0,86921.0,0.00012363]
[1740587473331,0.172568,86922.0,86921.0,0.00012363]
[1740587473712,0.345021,86952.0,86921.0,0.00012363]
[1740587473947,0.345021,86952.0,86921.0,0.00054763]
[1740587473948,0.00032293,86932.0,86921.0,0.00054763]
[1740587474347,0.08959642,86947.0,86921.0,0.00054763]
[1740587474832,0.172568,86922.0,86921.0,0.00054763]
[1740587475858,0.17289093,86922.0,86921.0,0.00054763]
[1740587476174,0.27585727,86922.0,86921.0,6.3e-07]
[1740587476333,0.172631,86891.0,86887.0,0.0008476]
[1740587476559,0.172636,86888.0,86887.0,0.00131967]
[1740587476755,0.17295893,86888.0,86887.0,0.00131967]
[1740587476961,0.08874842,86903.0,86887.0,0.00131967]
[1740587477518,0.172608,86902.0,86887.0,0.00131967]
[1740587477766,0.230178,86890.0,86887.0,0.00131967]
[1740587477996,0.172636,86888.0,86887.0,0.00131967]
[1740587478212,0.08874842,86903.0,86887.0,0.00131967]
[1740587478427,0.172636,86888.0,86887.0,0.00131967]
[1740587478903,0.230178,86890.0,86887.0,0.00131967]
[1740587479112,0.17263,86891.0,86887.0,0.00131967]
[1740587479313,0.230168,86893.0,86887.0,0.00131967]
[1740587479538,0.08874842,86903.0,86887.0,0.00131967]
[1740587479767,0.3803,86925.0,86887.0,0.00131967]
[1740587480018,0.172597,86908.0,86905.0,1.5]
[1740587480283,0.17258,86916.0,86902.0,0.172607]
[1740587480503,0.08874842,86925.0,86895.0,0.530162]
[1740587480720,0.08874842,86925.0,86913.0,1.5]
[1740587480986,0.172584,86914.0,86913.0,1.5]
[1740587481172,0.167484,86914.0,86913.0,1.5]
[1740587481615,0.06158,86950.0,86913.0,1.5]
[1740587481767,0.172565,86924.0,86913.0,1.5]
[1740587481968,0.172578,86918.0,86913.0,1.5]
[1740587482172,0.230048,86939.0,86913.0,1.5]
[1740587482376,0.000848,86947.0,86916.0,0.3811]
[1740587482589,0.000848,86947.0,86925.0,0.09194187]
[1740587482827,0.000848,86947.0,86935.0,0.172541]
[1740587482980,0.000848,86947.0,86930.0,0.3]
[1740587483348,0.000848,86947.0,86928.0,0.0452]
[1740587483349,0.000848,86947.0,86941.0,0.3]
[1740587483793,0.000848,86947.0,86941.0,0.30047207]
[1740587484273,0.08874842,86987.0,86946.0,0.47252]
[1740587484277,0.172465,86975.0,86951.0,0.09194187]
[1740587484524,0.0803,87004.0,86952.0,0.3463]
[1740587484755,0.01275243,87003.0,86958.0,0.3]
[1740587484985,0.01275243,87003.0,86954.0,0.3]
[1740587485724,0.01454085,87002.0,86954.0,0.3]
[1740587485935,0.229877,87003.0,86964.0,0.3]
[1740587486135,0.0803,87004.0,86964.0,0.3]
[1740587486400,0.01454085,87003.0,86956.0,0.3]
[1740587486639,0.01454085,87001.0,86956.0,0.3]
[1740587486845,0.172499,86957.0,86956.0,0.3]
[1740587487051,0.01454085,86982.0,86952.0,0.0463]
[1740587487257,0.229998,86958.0,86952.0,0.0463]
[1740587487474,0.0008484,86975.0,86952.0,0.0463]
[1740587487953,0.172487,86963.0,86952.0,0.0463]
[1740587488181,0.0008484,86975.0,86953.0,0.39355181]
[1740587488392,0.0008484,86975.0,86964.0,0.3]
[1740587488523,0.0008484,86975.0,86966.0,0.3]
[1740587489104,0.229953,86974.0,86953.0,0.39194187]
[1740587489310,0.0008484,86975.0,86955.0,0.3]
[1740587489716,0.229956,86973.0,86955.0,0.3]
[1740587489946,0.0008484,86975.0,86955.0,0.3]
[1740587490142,0.22996,86972.0,86955.0,0.3]
[1740587490347,0.0008484,86975.0,86952.0,0.0463]
[1740587490546,0.229953,86974.0,86952.0,0.0463]
[1740587490747,0.172494,86960.0,86952.0,0.0463]
[1740587490957,0.0008484,86975.0,86952.0,0.0463]
[1740587491127,0.0008484,86975.0,86953.0,0.09355195]
[1740587491331,0.0008484,86975.0,86954.0,0.32890974]
[1740587491525,0.0008484,86975.0,86960.0,0.172493]
[1740587491771,0.0008484,86975.0,86968.0,0.3]
[1740587491973,0.0008484,86975.0,86970.0,0.229963]
[1740587492227,0.0008484,86975.0,86974.0,0.61230687]
[1740587492432,0.3283,87033.0,86974.0,0.46714187]
[1740587492677,0.3283,87033.0,86986.0,0.09194187]
[1740587492875,0.3283,87033.0,86974.0,0.46714187]
[1740587492876,0.172435,86989.0,86974.0,0.46714187]
[1740587493092,0.172439,86987.0,86986.0,0.00047207]
[1740587493295,0.459621,87029.0,86986.0,0.00047207]
[1740587493471,0.0811482,87034.0,86986.0,0.00047207]
[1740587493472,0.01454085,87020.0,86986.0,0.00047207]
[1740587493670,0.3283,87031.0,86986.0,0.00047207]
[1740587493871,0.229884,87001.0,86986.0,0.00047207]
[1740587494072,0.3283,87031.0,86986.0,0.00047207]
[1740587494073,0.172439,86987.0,86986.0,0.00047207]
[1740587494745,0.3283,87020.0,86988.0,0.3]
[1740587494958,0.3283,87020.0,86986.0,0.00047207]
[1740587495168,0.34284085,87020.0,86986.0,0.00047207]
[1740587495403,0.172417,86999.0,86986.0,0.00047207]
[1740587495570,0.34284085,87020.0,86986.0,0.00047207]
[1740587495807,0.34284085,87020.0,86987.0,0.3]
[1740587496218,0.172411,87001.0,86986.0,0.30047207]
[1740587496423,0.172439,86987.0,86986.0,0.00047207]
[1740587499705,0.172439,86987.0,86961.0,1.5]
[1740587499706,0.172489,86962.0,86961.0,1.5]
[1740587499906,0.3283,86986.0,86961.0,1.50047265]
[1740587500107,0.172457,86979.0,86962.0,0.3]
[1740587500322,0.3283,87000.0,86962.0,0.3]
[1740587500549,0.3283,87011.0,86971.0,0.09194187]
[1740587500758,0.3283,87018.0,86984.0,0.0484]
[1740587500964,0.172423,86995.0,86994.0,1.5]
[1740587501416,0.2307024,87012.0,86994.0,1.5]
[1740587501417,0.229855,87011.0,86994.0,1.5]
[1740587501658,0.172402,87006.0,86995.0,0.3]
[1740587501860,0.0008484,87012.0,86995.0,0.3]
[1740587502274,0.0008484,87012.0,86995.0,0.30047265]
[1740587502491,0.0008484,87012.0,87006.0,0.09194187]
[1740587502695,0.0008484,87012.0,87011.0,0.472391]
[1740587502909,0.0008484,87012.0,87011.0,0.3]
[1740587503126,0.0008484,87012.0,87011.0,1.972391]
[1740587504831,0.0008484,87012.0,87011.0,2.022291]
[1740587505508,0.0008484,87012.0,87011.0,1.8499]
[1740587506029,0.0008484,87012.0,87011.0,0.3499]
[1740587506276,0.0008484,87012.0,87011.0,0.522291]
[1740587506808,0.0008484,87012.0,87011.0,0.3499]
[1740587507302,0.0008484,87012.0,87011.0,0.522291]
[1740587507544,0.0008484,87012.0,87011.0,0.3499]
[1740587507773,0.0008484,87012.0,87011.0,0.522291]
[1740587508494,0.0008484,87012.0,87011.0,2.022291]
[1740587512073,0.0008484,87012.0,87011.0,2.13603853]
[1740587512295,0.0008482,87034.0,87033.0,0.472348]
[1740587512754,0.0008482,87034.0,87033.0,0.70639553]
[1740587512992,0.0008482,87034.0,87033.0,1.87436168]
[1740587513285,0.0004237,87057.0,87056.0,0.519402]
[1740587513760,0.0004237,87057.0,87056.0,0.51987465]
[1740587514171,0.0004237,87057.0,87056.0,2.01987465]
[1740587516073,0.0004237,87057.0,87056.0,1.84757265]
[1740587516182,0.0004237,87057.0,87056.0,2.01987465]
[1740587516597,0.0004237,87057.0,87056.0,1.84757265]
[1740587518880,0.0004237,87057.0,87056.0,2.01987465]
[1740587519746,0.0004237,87057.0,87056.0,1.84757265]
[1740587520268,0.0004235,87100.0,87057.0,0.3]
[1740587520467,0.172233,87092.0,87058.0,0.00160784]
[1740587520672,0.0004235,87100.0,87058.0,0.00160784]
[1740587520892,0.229661,87085.0,87059.0,0.3]
[1740587521121,0.0004235,87100.0,87056.0,0.04757265]
[1740587521122,0.0004235,87100.0,87069.0,1.8]
[1740587521729,0.172251,87082.0,87070.0,0.3]
[1740587521931,0.172247,87084.0,87071.0,0.3]
[1740587522377,0.229623,87099.0,87071.0,0.3]
[1740587522592,0.0004235,87100.0,87071.0,0.3]
[1740587522806,0.172271,87072.0,87071.0,0.3]
[1740587523022,0.1723,87057.0,87056.0,0.00047265]
[1740587525184,0.18684085,87057.0,87056.0,6.5e-07]
[1740587525397,0.09189434,87062.0,87009.0,0.0473]
[1740587525398,0.01454085,87056.0,87009.0,0.0473]
[1740587525604,0.00041242,87057.0,87009.0,0.0473]
[1740587525824,0.00041242,87057.0,87011.0,0.3]
[1740587526031,0.00041242,87057.0,87028.0,0.09189434]
[1740587526238,0.00041242,87057.0,87038.0,0.0806]
[1740587526446,0.00041242,87057.0,87039.0,0.00160808]
[1740587527326,0.00041242,87057.0,87056.0,0.472302]
[1740587527954,0.00041242,87057.0,87056.0,0.3]
[1740587528596,0.00041242,87057.0,87056.0,1.8]
[1740587530624,0.17271242,87057.0,87056.0,1.8]
[1740587530830,0.17271242,87057.0,87056.0,1.5]
[1740587531029,0.17271242,87057.0,87025.0,0.01204]
[1740587531030,0.02696638,87057.0,87025.0,0.01204]
[1740587531269,0.00041242,87057.0,87026.0,0.00160858]
[1740587531472,0.00041242,87057.0,87041.0,1.5]
[1740587531686,0.17233,87042.0,87041.0,1.5]
[1740587532137,0.172329,87043.0,87041.0,1.5]
[1740587532276,0.17233,87042.0,87041.0,1.5]
[1740587533733,0.229759,87048.0,87041.0,1.5]
[1740587533885,0.17233,87042.0,87041.0,1.5]
[1740587535675,0.01454085,87041.0,87003.0,0.0478]
[1740587535878,0.01454085,87039.0,87003.0,0.0478]
[1740587536089,0.01454085,87029.0,86997.0,0.034555]
[1740587536295,0.172415,86999.0,86998.0,1.5]
[1740587536912,0.172429,86992.0,86991.0,0.7]
[1740587537113,0.172439,86987.0,86957.0,0.1308]
[1740587537538,0.172439,86987.0,86975.0,1.5]
[1740587537756,0.229888,86999.0,86986.0,0.00056565]
[1740587538085,0.0788,87032.0,86987.0,0.0486]
[1740587538310,0.10676488,87032.0,86987.0,0.0486]
[1740587538518,0.172412,87001.0,86991.0,0.3]
[1740587538730,0.01454085,87038.0,86991.0,0.3]
[1740587538939,0.172422,86996.0,86991.0,0.3]
[1740587539119,0.172427,86993.0,86991.0,0.3]
[1740587539323,0.31454085,87033.0,86992.0,1.5]
[1740587539526,0.02,87051.0,86991.0,0.3]
[1740587539743,0.229816,87026.0,86992.0,0.09350349]
[1740587539945,0.0483,87059.0,86993.0,0.0497]
[1740587540151,0.172362,87026.0,87025.0,1.5]
[1740587540568,0.01454085,87025.0,86999.0,0.01204]
[1740587540775,0.172404,87005.0,86999.0,0.01204]
[1740587540989,0.229803,87031.0,86999.0,0.01204]
[1740587541189,0.02,87055.0,87005.0,0.3]
[1740587541405,0.172403,87005.0,87004.0,1.5]
[1740587542031,0.172439,86987.0,86977.0,0.0455]
[1740587542241,0.18697985,86987.0,86961.0,0.0455]
[1740587542668,0.18697985,86987.0,86986.0,0.00056565]
[1740587543086,0.172439,86987.0,86986.0,0.00056565]
[1740587543295,0.0814,87032.0,86987.0,0.0765]
[1740587543525,0.0814,87032.0,86988.0,0.00770657]
[1740587543979,0.229803,87031.0,86989.0,0.3]
[1740587544188,0.0814,87043.0,86992.0,0.3]
[1740587544398,0.172384,87015.0,86990.0,0.09189434]
[1740587544609,0.172358,87029.0,87002.0,0.3]
[1740587544846,0.229737,87056.0,87015.0,0.3]
[1740587545096,0.0814,87064.0,87017.0,0.3]
[1740587545318,0.229803,87031.0,87017.0,0.3]
[1740587545533,0.01454085,87063.0,87019.0,0.3]
[1740587545741,0.0814,87064.0,87018.0,0.229837]
[1740587545742,0.0814,87064.0,87018.0,0.3]
[1740587545949,0.17235,87032.0,87019.0,0.3]
[1740587546152,0.17235,87032.0,87016.0,0.012]
[1740587546153,0.10023846,87068.0,87021.0,0.3]
[1740587546394,0.10023846,87068.0,87023.0,0.3]
[1740587546623,0.10023846,87068.0,87050.0,0.22975]
[1740587546830,0.10023846,87068.0,87049.0,0.012]
[1740587546831,0.229715,87065.0,87049.0,0.012]
[1740587547043,0.172292,87062.0,87050.0,0.3]
[1740587547265,0.00041242,87065.0,87052.0,0.3]
[1740587547476,0.00041242,87065.0,87055.0,0.3]
[1740587547686,0.00041242,87065.0,87051.0,0.3]
[1740587547898,0.00041242,87065.0,87055.0,0.0821]
[1740587548111,0.00041242,87065.0,87063.0,0.3]
[1740587548511,0.00041242,87065.0,87064.0,1.8]
[1740587549342,0.17269742,87065.0,87064.0,1.5]
[1740587549549,0.00041242,87065.0,87045.0,0.012]
[1740587549794,0.172322,87046.0,87045.0,0.012]
[1740587550051,0.172309,87053.0,87045.0,0.012]
[1740587550495,0.23012642,87065.0,87045.0,0.012]
[1740587550496,0.172311,87052.0,87045.0,0.012]
[1740587550497,0.172312,87052.0,87045.0,0.012]
[1740587550731,0.00041242,87065.0,87045.0,0.012]
[1740587551187,0.00041242,87065.0,87031.0,0.3]
[1740587551410,0.00041242,87065.0,87032.0,0.012]
[1740587551777,0.00041242,87065.0,87026.0,1.5]
[1740587552113,0.17236,87027.0,87026.0,1.5]
[1740587552548,0.01454085,87075.0,87017.0,0.0004234]
[1740587552752,0.17236,87027.0,87017.0,0.0004234]
[1740587552967,0.172378,87018.0,87017.0,0.01335574]
[1740587553166,0.01454085,87046.0,87017.0,0.01335574]
[1740587553373,0.3,87062.0,87017.0,0.01335574]
[1740587553582,0.01454085,87044.0,87017.0,0.01335574]
[1740587553782,0.00041217,87046.0,87017.0,0.01335574]
[1740587553989,0.00041217,87046.0,87018.0,0.01422557]
[1740587554195,0.172364,87025.0,87018.0,0.01422557]
[1740587554403,0.00041217,87046.0,87018.0,0.01422557]
[1740587554611,0.00041217,87046.0,87018.0,0.01583417]
[1740587554816,0.00041217,87046.0,87021.0,0.09189434]
[1740587555023,0.00041217,87046.0,87022.0,0.31242359]
[1740587555236,0.00041217,87046.0,87022.0,0.31081519]
[1740587556273,0.00041217,87046.0,87030.0,0.09189434]
[1740587556468,0.00041217,87046.0,87023.0,0.3]
[1740587556903,0.22977,87044.0,87023.0,0.3]
[1740587557106,0.00041217,87046.0,87023.0,0.3]
[1740587557285,0.00041217,87046.0,87021.0,0.09189434]
[1740587557506,0.00041217,87046.0,87022.0,0.00160843]
[1740587557739,0.00041217,87046.0,87023.0,0.3463]
[1740587558003,0.00041217,87046.0,87044.0,0.3]
[1740587558685,0.00041217,87046.0,87045.0,1.8]
[1740587558941,0.00041217,87046.0,87045.0,1.881]
[1740587559177,0.00041217,87046.0,87045.0,2.04004753]
[1740587559427,0.00041217,87046.0,87045.0,1.9263]
[1740587559975,0.00041217,87046.0,87045.0,2.1763]
[1740587560906,0.0008472,87056.0,87047.0,0.02]
[1740587561178,0.0008472,87056.0,87055.0,0.56419834]
[1740587561417,0.0008468,87091.0,87056.0,0.3489]
[1740587561664,0.0008468,87091.0,87056.0,0.3762]
[1740587561874,0.01454085,87090.0,87084.0,0.25]
[1740587562080,0.557949,87090.0,87084.0,0.25]
[1740587562287,0.172245,87085.0,87084.0,0.25]
[1740587562498,0.3283,87090.0,87084.0,0.25]
[1740587562718,0.0008468,87091.0,87085.0,0.3]
[1740587563122,0.0008468,87091.0,87085.0,0.30014175]
[1740587564076,0.0008468,87091.0,87090.0,0.722235]
[1740587564296,0.0008468,87091.0,87090.0,2.05]
[1740587564510,0.15065506,87100.0,87091.0,0.3]
[1740587564720,0.229596,87110.0,87091.0,0.3]
[1740587564919,0.172217,87100.0,87091.0,0.3]
[1740587565122,0.42853846,87124.0,87094.0,0.172227]
[1740587565342,0.3283,87124.0,87091.0,0.3]
[1740587565756,0.01496465,87116.0,87091.0,0.3]
[1740587565984,0.172231,87092.0,87091.0,0.3]
[1740587566157,0.172243,87086.0,87085.0,0.00014175]
[1740587566517,0.18678385,87086.0,87085.0,0.00014175]
[1740587567379,0.172243,87086.0,87085.0,0.00014175]
[1740587567935,0.3283,87126.0,87085.0,0.00014175]
[1740587568076,0.172217,87100.0,87086.0,0.3]
[1740587568260,0.3283,87126.0,87099.0,1.5]
[1740587568458,0.3283,87126.0,87102.0,0.3]
[1740587568905,0.229572,87119.0,87102.0,0.3]
[1740587569084,0.3283,87126.0,87103.0,1.5]
[1740587569282,0.10023846,87138.0,87104.0,0.3]
[1740587569488,0.229556,87125.0,87104.0,0.3]
[1740587569686,0.32976046,87138.0,87104.0,0.3]
[1740587569896,0.229542,87130.0,87115.0,0.55]
[1740587570354,0.1726078,87116.0,87115.0,0.55]
[1740587570564,0.0004238,87116.0,87115.0,2.05]
[1740587571134,0.0004238,87116.0,87115.0,2.05014175]
[1740587576903,0.0004238,87116.0,87115.0,2.22232775]
[1740587577662,0.0004238,87116.0,87115.0,2.54962775]
[1740587579554,0.0004238,87116.0,87115.0,2.57157014]
[1740587579671,0.0004238,87116.0,87115.0,2.54962775]
[1740587580729,0.0004238,87116.0,87115.0,2.66337528]
[1740587580929,0.0004238,87117.0,87116.0,0.3]
[1740587581089,0.0004237,87141.0,87140.0,0.472136]
[1740587581301,0.0004237,87141.0,87140.0,0.484136]
[1740587581503,0.0004237,87141.0,87140.0,1.07811594]
[1740587581728,0.0004237,87141.0,87140.0,2.57811594]
[1740587582088,2e-07,87145.0,87144.0,0.472128]
[1740587582298,2e-07,87145.0,87144.0,0.62041638]
[1740587582498,7e-05,87168.0,87152.0,0.553713]